fUSD/lending_fUSD_20240109
["ID","MTS","AMOUNT","RATE_DAILY","PERIOD"]
[310901248,1704813785774,3185.21463735,0.00021759,2]
[310901251,1704813797878,2009.15815061,0.00021581,2]
[310901276,1704813806366,3185.21463735,0.00021759,2]
[310901277,1704813815491,405.50277568,0.00022434,2]
[310901278,1704813816135,5175.7863842,0.00021799,2]
[310901279,1704813825628,493.0,0.00030986,120]
[310901280,1704813825804,662.72062457,0.00021631,2]
[310901281,1704813825860,3195.18174134,0.00022,2]
[310901282,1704813830462,219.90355198,0.00022,2]
[310901283,1704813831121,176.8846555,0.00021799,2]
[310901284,1704813832217,3039.738507,0.00022419,2]
[310901285,1704813834086,155.0,0.00021799,2]
[310901301,1704813836583,844.98023039,0.00021799,2]
[310901320,1704813839223,394.15,0.00021738,2]
[310901324,1704813841777,3184.00180731,0.0002163,2]
[310901325,1704813859464,153.40688034,0.00022434,2]
[310901326,1704813908093,244.86,0.00019792,2]
[310901327,1704813908199,1876.78783194,0.00022434,2]
[310901328,1704813909069,175.81,0.00021927,2]
[310901329,1704813909378,175.81,0.00022144,2]
[310901330,1704813909526,175.81,0.00022362,2]
[310901331,1704813915228,244.86,0.00022056,2]
[310901332,1704813919351,195.07122017,0.0002243,2]
[310901333,1704813943269,153.84,0.00021863,2]
[310901334,1704813943525,153.84,0.00022006,2]
[310901335,1704813943727,153.84,0.00022148,2]
[310901336,1704813943967,153.84,0.00022291,2]
[310901337,1704813944182,153.84,0.00022433,2]
[310901338,1704814009256,1000.0,0.00021848,2]
[310901339,1704814052885,5456.05,0.00021645,2]
[310901340,1704814054490,277.75,0.00021645,2]
[310901360,1704814084415,732.25,0.00021626,2]
[310901365,1704814090842,18002.50669705,0.00022296,2]
[310901366,1704814091101,58164.0,0.00022305,2]
[310901392,1704814108054,408.78,0.00021611,2]
[310901409,1704814132600,237.72,0.00021602,2]
[310901410,1704814135595,518.11,0.00021527,2]
[310901514,1704814167698,23900.0,0.00021601,2]
[310901530,1704814180940,939.01597948,0.00022501,2]
[310901532,1704814190851,7768.84462224,0.00022501,2]
[310901534,1704814192985,467.87088738,0.00022497,2]
[310901535,1704814195165,2302.61351158,0.00022501,2]
[310901537,1704814201586,3027.61995488,0.00022501,2]
[310901538,1704814202539,150.0,0.00022501,2]
[310901544,1704814204305,32033.3752,0.0002241,2]
[310901545,1704814204536,2997.06754688,0.00022501,2]
[310901546,1704814204560,325.92799089,0.00022501,2]
[310901547,1704814207712,1706.15282945,0.00022501,2]
[310901548,1704814209289,345.47752639,0.00022501,2]
[310901549,1704814213821,526.93895841,0.00022501,2]
[310901550,1704814213857,163.19,0.0002161,2]
[310901551,1704814215410,200.0,0.00021527,2]
[310901552,1704814223204,765.33424633,0.00022501,2]
[310901553,1704814223268,522.87314687,0.00022501,2]
[310901554,1704814228909,1175.9932459,0.00022501,2]
[310901555,1704814230814,434.21375425,0.00022435,2]
[310901606,1704814232179,-5683.96811853,0.00022502,2]
[310901607,1704814232189,-1204.89871329,0.00022508,2]
[310901608,1704814232200,-188.90445108,0.00022508,2]
[310901609,1704814232211,-155.50679806,0.00022508,2]
[310901610,1704814232221,-860.97027742,0.00022508,2]
[310901611,1704814232231,-522.1280311,0.00022508,2]
[310901612,1704814232240,-192.03501615,0.00022508,2]
[310901613,1704814232253,-766.69037996,0.00022509,2]
[310901614,1704814232262,-179.81964,0.00022521,2]
[310901615,1704814232272,-336.35995625,0.00022521,2]
[310901616,1704814232281,-163.35829217,0.00022521,2]
[310901617,1704814232290,-241.99376573,0.00022521,2]
[310901618,1704814232299,-233.75453784,0.00022522,2]
[310901619,1704814232309,-506.2012999,0.00022522,2]
[310901620,1704814232319,-699.45346921,0.00022524,2]
[310901621,1704814232328,-516.85495493,0.00022524,2]
[310901622,1704814232338,-438.08184353,0.00022524,2]
[310901623,1704814232347,-221.59879115,0.00022524,2]
[310901624,1704814232357,-682.71654889,0.00022524,2]
[310901625,1704814232366,-155.48516901,0.00022524,2]
[310901626,1704814232375,-579.68,0.00022524,2]
[310901627,1704814232385,-155.0,0.00022524,2]
[310901628,1704814232394,-155.97555376,0.00022524,2]
[310901629,1704814232404,-155.21161762,0.00022524,2]
[310901630,1704814232413,-2403.85010472,0.00022524,2]
[310901631,1704814232423,-3022.88216605,0.00022524,2]
[310901632,1704814232433,-301.81545111,0.00022524,2]
[310901633,1704814232442,-4119.5772864,0.00022524,2]
[310901634,1704814232452,-1586.13861823,0.00022524,2]
[310901635,1704814232462,-345.47752639,0.00022524,2]
[310901636,1704814232472,-876.87900109,0.00022524,2]
[310901637,1704814232482,-172.15600284,0.00022524,2]
[310901638,1704814232491,-487.42702733,0.00022525,2]
[310901639,1704814232503,-150.99,0.00022525,2]
[310901640,1704814232512,-7417.04879281,0.00022525,2]
[310901641,1704814232521,-35671.83835211,0.00022526,2]
[310901642,1704814232533,-16398.30073846,0.00022526,2]
[310901643,1704814232548,-366.54556768,0.00022526,2]
[310901644,1704814232561,-79763.13824437,0.00022526,2]
[310901645,1704814232571,-760.84576583,0.00022527,2]
[310901646,1704814232581,-220.89000562,0.00022527,2]
[310901647,1704814232590,-525.61802736,0.00022527,2]
[310901648,1704814232600,-210.92031935,0.00022527,2]
[310901649,1704814232611,-472.27624596,0.00022527,2]
[310901650,1704814232620,-155.39180179,0.00022527,2]
[310901651,1704814232630,-18972.87472611,0.00022527,2]
[310901652,1704814232639,-360.95758828,0.00022528,2]
[310901653,1704814232649,-371.99470695,0.00022528,2]
[310901654,1704814232659,-155.20538492,0.00022528,2]
[310901655,1704814232668,-233.90289656,0.00022528,2]
[310901656,1704814232678,-155.35930712,0.00022528,2]
[310901657,1704814232687,-310.74885939,0.00022528,2]
[310901658,1704814232697,-156.42508292,0.00022528,2]
[310901659,1704814232707,-158.29612354,0.00022529,2]
[310901660,1704814232716,-869.60247421,0.00022529,2]
[310901661,1704814232726,-5745.3,0.00022529,2]
[310901662,1704814232736,-150.0,0.00022529,2]
[310901663,1704814232746,-1000.0,0.00022529,2]
[310901664,1704814232759,-1000.0,0.00022529,2]
[310901665,1704814232769,-3712.20598495,0.00022529,2]
[310901666,1704814232779,-5322.5786516,0.0002253,2]
[310901667,1704814232790,-1055084.82152772,0.0002253,2]
[310901668,1704814232799,-19999.99,0.00022535,2]
[310901669,1704814232810,-985.79377473,0.00022563,2]
[310901670,1704814232821,-18440.7422,0.00022568,2]
[310901671,1704814232832,-153.84,0.00022575,2]
[310901672,1704814232842,-175.81,0.00022579,2]
[310901673,1704814232852,-621.17,0.00022604,2]
[310901674,1704814232862,-732.25,0.00022605,2]
[310901675,1704814232872,-6403.02879871,0.00022664,2]
[310901676,1704814232882,-3667.22326191,0.00022664,4]
[310901677,1704814232892,-207.42651436,0.00022664,2]
[310901678,1704814232901,-322.05,0.00022664,2]
[310901679,1704814232911,-312.02,0.00022664,2]
[310901680,1704814232921,-1426.2366809,0.00022666,2]
[310901681,1704814232931,-317.68758824,0.00022666,2]
[310901682,1704814232941,-301.47622861,0.00022666,2]
[310901683,1704814232951,-159.35944457,0.00022666,2]
[310901684,1704814232962,-268.11653494,0.00022666,2]
[310901685,1704814232972,-609.59811535,0.00022666,2]
[310901686,1704814232984,-2140.8217135,0.00022666,2]
[310901687,1704814233001,-24050.06060628,0.00022666,2]
[310901688,1704814233011,-1662.65999529,0.00022666,2]
[310901689,1704814233021,-551.67613433,0.00022666,2]
[310901690,1704814233030,-2487.85692314,0.00022666,2]
[310901691,1704814233040,-155.83372319,0.00022666,2]
[310901692,1704814233050,-3138.18877054,0.00022666,2]
[310901693,1704814233060,-265.13209175,0.00022666,2]
[310901694,1704814233077,-526.91370281,0.00022666,2]
[310901695,1704814233094,-536.19953173,0.00022666,2]
[310901696,1704814233113,-2797.07583121,0.00022666,2]
[310901697,1704814233133,-2150.35390188,0.00022666,2]
[310901698,1704814233151,-3920.35158571,0.00022666,2]
[310901699,1704814233168,-155.0,0.00022667,2]
[310901700,1704814233185,-33318.0322818,0.00022667,2]
[310901701,1704814233197,-1000.0,0.00022668,2]
[310901702,1704814233208,-100000.0,0.00022668,2]
[310901703,1704814233218,-11927.7361,0.00022668,2]
[310901704,1704814233230,-153.84,0.00022718,2]
[310901705,1704814233240,-621.17,0.00022718,2]
[310901706,1704814233254,-150.0,0.00022724,2]
[310901707,1704814233265,-150.0,0.00022725,2]
[310901708,1704814233275,-150.0,0.0002274,2]
[310901709,1704814233284,-150.0,0.00022743,2]
[310901710,1704814233293,-150.0,0.00022743,2]
[310901711,1704814233303,-150.0,0.00022743,2]
[310901712,1704814233312,-302.02476776,0.00022745,2]
[310901713,1704814233321,-150.0,0.00022746,2]
[310901714,1704814233332,-150.0,0.00022748,2]
[310901715,1704814233341,-150.0,0.00022757,2]
[310901716,1704814233350,-150.0,0.0002276,2]
[310901717,1704814233359,-300.0,0.00022761,2]
[310901718,1704814233369,-214.48804093,0.00022761,2]
[310901719,1704814233378,-150.0,0.00022765,2]
[310901720,1704814233388,-150.0,0.00022767,2]
[310901721,1704814233398,-150.0,0.0002277,2]
[310901722,1704814233407,-300.0,0.0002277,2]
[310901723,1704814233421,-150.0,0.0002277,2]
[310901724,1704814233431,-150.0,0.00022773,2]
[310901725,1704814233440,-150.0,0.00022776,2]
[310901726,1704814233450,-150.0,0.00022781,2]
[310901727,1704814233459,-150.0,0.00022786,2]
[310901728,1704814233469,-150.0,0.00022791,2]
[310901729,1704814233478,-150.0,0.00022792,2]
[310901730,1704814233487,-166.91230757,0.00022793,2]
[310901731,1704814233496,-150.0,0.00022794,2]
[310901732,1704814233507,-150.0,0.00022795,2]
[310901733,1704814233516,-175.81,0.00022796,2]
[310901734,1704814233526,-935.54361585,0.000228,2]
[310901735,1704814233536,-165.23684404,0.000228,2]
[310901736,1704814233545,-150.0,0.00022811,2]
[310901737,1704814233555,-200.0,0.00022816,2]
[310901738,1704814233565,-800.0,0.00022816,2]
[310901739,1704814233575,-200.0,0.00022816,2]
[310901740,1704814233584,-150.0,0.00022819,2]
[310901741,1704814233594,-165.23684401,0.0002282,2]
[310901742,1704814233603,-150.0,0.0002282,2]
[310901743,1704814233612,-150.0,0.00022824,2]
[310901744,1704814233621,-150.0,0.00022832,2]
[310901745,1704814233631,-150.0,0.00022832,2]
[310901746,1704814233640,-621.17,0.00022833,2]
[310901747,1704814233650,-150.0,0.00022834,2]
[310901748,1704814233661,-150.0,0.00022838,2]
[310901749,1704814233671,-165.23684401,0.0002284,2]
[310901750,1704814233680,-300.0,0.00022848,2]
[310901751,1704814233689,-150.0,0.0002285,2]
[310901752,1704814233698,-150.0,0.0002285,2]
[310901753,1704814233708,-197.15961698,0.00022851,2]
[310901754,1704814233717,-150.0,0.00022853,2]
[310901755,1704814233726,-150.0,0.00022854,2]
[310901756,1704814233735,-150.0,0.00022855,2]
[310901757,1704814233744,-165.23684401,0.0002286,2]
[310901758,1704814233756,-153.84,0.0002286,2]
[310901759,1704814233766,-150.0,0.00022861,2]
[310901760,1704814233777,-150.0,0.00022861,2]
[310901761,1704814233790,-294.22206401,0.00022862,2]
[310901762,1704814233799,-150.0,0.00022865,2]
[310901763,1704814233809,-150.0,0.00022867,2]
[310901764,1704814233819,-150.0,0.00022867,2]
[310901765,1704814233829,-150.0,0.00022869,2]
[310901766,1704814233838,-150.0,0.0002287,2]
[310901767,1704814233847,-150.0,0.00022871,2]
[310901768,1704814233857,-165.23684401,0.0002288,2]
[310901769,1704814233868,-150.0,0.00022884,2]
[310901770,1704814233877,-150.0,0.00022891,2]
[310901771,1704814233887,-150.0,0.00022896,2]
[310901772,1704814233896,-150.0,0.00022896,2]
[310901773,1704814233906,-188.07869919,0.00022899,2]
[310901774,1704814233915,-150.0,0.00022899,2]
[310901775,1704814233925,-129122.01584086,0.000229,2]
[310901776,1704814233934,-165.23684401,0.000229,2]
[310901777,1704814233943,-172.78776713,0.000229,2]
[310901778,1704814233953,-174.41039487,0.000229,2]
[310901779,1704814233963,-300.0,0.000229,2]
[310901780,1704814233972,-407.65,0.000229,2]
[310901781,1704814233982,-150.0,0.000229,2]
[310901782,1704814233992,-150.0,0.000229,2]
[310901783,1704814234002,-1343.91003913,0.000229,2]
[310901784,1704814234012,-24133.95,0.000229,2]
[310901785,1704814234021,-150.0,0.00022907,2]
[310901786,1704814234031,-150.0,0.00022908,2]
[310901787,1704814234040,-300.0,0.00022918,2]
[310901788,1704814234049,-150.0,0.00022919,2]
[310901789,1704814234059,-154.44,0.00022921,2]
[310901790,1704814234068,-150.0,0.00022921,2]
[310901791,1704814234078,-150.0,0.00022922,2]
[310901792,1704814234087,-150.0,0.00022923,2]
[310901793,1704814234096,-150.0,0.00022924,2]
[310901794,1704814234106,-150.0,0.00022925,2]
[310901795,1704814234117,-150.0,0.00022925,2]
[310901796,1704814234127,-150.0,0.00022928,2]
[310901797,1704814234136,-150.0,0.00022936,2]
[310901798,1704814234145,-150.0,0.00022938,2]
[310901799,1704814234155,-150.0,0.00022939,2]
[310901800,1704814234164,-150.0,0.00022942,2]
[310901801,1704814234174,-150.0,0.00022945,2]
[310901802,1704814234184,-150.0,0.00022946,2]
[310901803,1704814234193,-150.0,0.00022947,2]
[310901804,1704814234202,-621.17,0.00022948,2]
[310901805,1704814234214,-150.0,0.00022948,2]
[310901806,1704814234223,-150.0,0.0002295,2]
[310901807,1704814234233,-150.0,0.0002295,2]
[310901808,1704814234242,-150.0,0.00022952,2]
[310901809,1704814234254,-1500.0,0.00022953,2]
[310901810,1704814234263,-150.0,0.00022957,2]
[310901811,1704814234272,-300.0,0.00022961,2]
[310901812,1704814234282,-150.0,0.00022961,2]
[310901813,1704814234292,-196.87,0.00022962,2]
[310901814,1704814234303,-150.0,0.00022965,2]
[310901815,1704814234313,-155.8554807,0.00022968,2]
[310901816,1704814234323,-150.0,0.00022973,2]
[310901817,1704814234332,-150.0,0.00022973,2]
[310901818,1704814234341,-150.0,0.00022974,2]
[310901819,1704814234351,-150.0,0.00022975,2]
[310901820,1704814234360,-300.0,0.00022975,2]
[310901821,1704814234370,-1500.0,0.00022976,2]
[310901822,1704814234379,-198.50893309,0.0002298,2]
[310901823,1704814234388,-150.0,0.00022981,2]
[310901824,1704814234397,-245.5804193,0.00022985,2]
[310901825,1704814234406,-300.0,0.00022986,2]
[310901826,1704814234415,-150.0,0.0002299,2]
[310901827,1704814234425,-150.0,0.00022994,2]
[310901828,1704814234434,-150.0,0.00022996,2]
[310901829,1704814234443,-150.0,0.00022996,2]
[310901830,1704814234452,-2275.4907863,0.00022997,2]
[310901831,1704814234461,-11956.6423861,0.00022997,2]
[310901832,1704814234470,-10944.4886374,0.00022997,2]
[310901833,1704814234479,-58537.4393333,0.00022997,2]
[310901834,1704814234488,-8240.9475064,0.00022997,2]
[310901835,1704814234497,-698.9529892,0.00022997,2]
[310901836,1704814234507,-877.5497808,0.00022997,2]
[310901837,1704814234517,-2770.4303339,0.00022997,2]
[310901838,1704814234526,-30000.0,0.00022998,2]
[310901839,1704814234535,-11494.12917694,0.00022998,2]
[310901840,1704814234545,-151.0,0.00022999,2]
[310901841,1704814234554,-150.0,0.00022999,2]
[310901842,1704814234564,-150.0,0.00022999,2]
[310901843,1704814234572,-150.0,0.00022999,2]
[310901844,1704814234581,-150.0,0.00022999,2]
[310901845,1704814234590,-150.0,0.00022999,2]
[310901846,1704814234599,-150.0,0.00022999,2]
[310901847,1704814234607,-150.0,0.00022999,2]
[310901848,1704814234617,-150.0,0.00022999,2]
[310901849,1704814234625,-150.0,0.00022999,2]
[310901850,1704814234634,-150.0,0.00022999,2]
[310901851,1704814234643,-150.0,0.00022999,2]
[310901852,1704814234652,-150.0,0.00022999,2]
[310901853,1704814234661,-577762.94370562,0.00023,2]
[310901854,1704814234685,-468.54,0.00023,2]
[310901855,1704814234721,-5404.96233349,0.00023,2]
[310901856,1704814234844,-2291.1,0.00023,2]
[310901857,1704814236370,434.21375415,0.00022477,2]
[310901899,1704814238267,-3699.06717392,0.00022507,2]
[310901900,1704814238338,-386.14715656,0.00022507,2]
[310901901,1704814238388,-394.42079563,0.00022507,2]
[310901902,1704814238398,-17.69259322,0.00023,2]
[310901903,1704814238444,-3265.48686984,0.00023,2]
[310901904,1704814238500,-2318067.7443965,0.00023,2]
[310901905,1704814238514,-40915.1901105,0.00023,2]
[310901906,1704814238525,-49960.99665159,0.00023,2]
[310902058,1704814241383,-277.95679074,0.0002252,2]
[310902060,1704814241395,-156.25696341,0.0002252,2]
[310902062,1704814241405,-482.19340811,0.00022999,2]
[310902064,1704814241414,-5597.20823641,0.00023,2]
[310902067,1704814241437,-1293.149938,0.00023,2]
[310902081,1704814241594,-767.87905576,0.00022998,2]
[310902083,1704814241604,-3848476.46308489,0.00023,2]
[310902085,1704814241614,-2816095.5833337,0.00023,2]
[310902087,1704814241623,-1647620.02364736,0.00023,2]
[310902089,1704814241632,-2000.0,0.00023,2]
[310902091,1704814241642,-417.51,0.00023,2]
[310902093,1704814241651,-417.51,0.00023,2]
[310902095,1704814241660,-935.75733002,0.00023,2]
[310902097,1704814241670,-417.51,0.00023,2]
[310902099,1704814241679,-414.88,0.00023,2]
[310902101,1704814241688,-2000.0,0.00023,2]
[310902103,1704814241698,-200.0,0.00023,2]
[310902105,1704814241707,-150.0,0.00023,2]
[310902107,1704814241716,-153.65,0.00023,2]
[310902109,1704814241725,-150.0,0.00023,2]
[310902110,1704814241734,-407.65,0.00023,2]
[310902111,1704814241743,-406.19,0.00023,2]
[310902112,1704814241752,-150.0,0.00023,2]
[310902113,1704814241762,-159.23,0.00023,2]
[310902114,1704814241771,-344.26,0.00023,2]
[310902115,1704814241780,-400.84,0.00023,2]
[310902116,1704814241793,-939.21,0.00023,2]
[310902117,1704814241802,-939.21,0.00023,2]
[310902118,1704814241811,-293.69,0.00023,2]
[310902119,1704814241819,-313.77,0.00023,2]
[310902120,1704814241829,-400.84,0.00023,2]
[310902121,1704814241838,-293.69,0.00023,2]
[310902122,1704814241847,-313.91,0.00023,2]
[310902123,1704814241856,-939.21,0.00023,2]
[310902124,1704814241866,-400.03,0.00023,2]
[310902125,1704814241875,-229.33601919,0.00023,2]
[310902126,1704814241884,-293.27,0.00023,2]
[310902128,1704814241893,-939.21,0.00023,2]
[310902130,1704814241902,-313.91,0.00023,2]
[310902131,1704814241911,-292.98,0.00023,2]
[310902133,1704814241921,-312.48,0.00023,2]
[310902135,1704814241930,-628.49,0.00023,2]
[310902137,1704814241939,-417.51,0.00023,2]
[310902139,1704814241948,-63786.0533333,0.00023002,2]
[310902141,1704814241958,-21755.8901167,0.00023002,2]
[310902143,1704814241967,-153.84,0.00023003,2]
[310902145,1704814241976,-186.76,0.00023007,2]
[310902147,1704814241985,-175.81,0.00023013,2]
[310902150,1704814242004,-2166.3825853,0.00023018,2]
[310902153,1704814242016,-11397.4550135,0.00023018,2]
[310902155,1704814242025,-10432.6375969,0.00023018,2]
[310902157,1704814242035,-55745.1302666,0.00023018,2]
[310902159,1704814242044,-9099.3189482,0.00023018,2]
[310902161,1704814242053,-771.7554533,0.00023018,2]
[310902163,1704814242063,-967.5096578,0.00023018,2]
[310902165,1704814242072,-2467.0309916,0.00023018,2]
[310902167,1704814242081,-60543.2986666,0.00023034,2]
[310902169,1704814242091,-20712.7103125,0.00023034,2]
[310902171,1704814242101,-44143.94083948,0.0002305,2]
[310902173,1704814242110,-621.17,0.00023063,2]
[310902175,1704814242119,-300.0,0.00023115,2]
[310902176,1704814242130,-985.79377473,0.00023116,2]
[310902178,1704814242140,-186.76,0.00023124,2]
[310902180,1704814242149,-200.0,0.00023131,2]
[310902181,1704814242159,-621.17,0.00023177,2]
[310902184,1704814242169,-164.08,0.0002319,2]
[310902186,1704814242179,-52952.8211999,0.00023224,2]
[310902188,1704814242188,-9957.69039,0.00023224,2]
[310902190,1704814242197,-844.5579174,0.00023224,2]
[310902191,1704814242207,-1057.4695348,0.00023224,2]
[310902194,1704814242217,-2163.6316493,0.00023224,2]
[310902196,1704814242227,-175.81,0.0002323,2]
[310902198,1704814242236,-2000.0,0.0002323,2]
[310902200,1704814242245,-200.0,0.0002323,2]
[310902202,1704814242254,-186.76,0.0002324,2]
[310902203,1704814242264,-57300.544,0.0002324,2]
[310902205,1704814242274,-19669.5305083,0.0002324,2]
[310902207,1704814242283,-2057.2743842,0.0002324,2]
[310902210,1704814242292,-10838.2676408,0.0002324,2]
[310902212,1704814242302,-9920.7865565,0.0002324,2]
[310902214,1704814242311,-167.66616628,0.0002325,2]
[310902216,1704814242321,-438.26983538,0.00023288,4]
[310902218,1704814242333,-151.37441209,0.00023288,4]
[310902220,1704814242343,-467.43322966,0.00023288,4]
[310902222,1704814242352,-646.88798408,0.00023288,4]
[310902224,1704814242362,-453.87283056,0.00023288,2]
[310902226,1704814242371,-523.79218961,0.00023288,4]
[310902228,1704814242381,-494.86904069,0.00023288,2]
[310902230,1704814242390,-405.48307758,0.00023288,4]
[310902232,1704814242399,-610.63624568,0.00023288,4]
[310902234,1704814242408,-186.99713781,0.00023288,4]
[310902236,1704814242418,-488.18863095,0.00023288,2]
[310902238,1704814242428,-446.1462487,0.00023288,2]
[310902240,1704814242437,-500.0,0.00023288,2]
[310902242,1704814242450,-150.79288005,0.00023288,4]
[310902244,1704814242459,-381.3844465,0.00023288,2]
[310902246,1704814242469,-195.27545237,0.00023288,2]
[310902249,1704814242478,-490.71659095,0.00023288,4]
[310902251,1704814242487,-306.6964575,0.00023288,4]
[310902253,1704814242497,-382.92056206,0.00023288,4]
[310902255,1704814242507,-467.69900866,0.00023288,2]
[310902257,1704814242516,-621.17,0.00023292,2]
[310902259,1704814242525,-186.76,0.00023356,2]
[310902261,1704814242535,-621.17,0.00023407,2]
[310902263,1704814242544,-175.81,0.00023447,2]
[310902265,1704814242553,-2000.0,0.00023462,2]
[310902267,1704814242563,-200.0,0.00023462,2]
[310902269,1704814242572,-186.76,0.00023472,2]
[310902271,1704814242581,-204.0,0.00023476,2]
[310902273,1704814242590,-621.17,0.00023521,2]
[310902275,1704814242600,-732.25,0.00023583,2]
[310902276,1704814242610,-186.76,0.00023588,2]
[310902278,1704814242619,-621.17,0.00023636,2]
[310902280,1704814242629,-175.81,0.00023664,2]
[310902282,1704814242638,-472.86,0.00023686,2]
[310902283,1704814242647,-2000.0,0.00023697,2]
[310902284,1704814242656,-200.0,0.00023697,2]
[310902285,1704814242666,-186.76,0.00023705,2]
[310902286,1704814242676,-164.08,0.0002371,2]
[310902287,1704814242685,-621.17,0.00023751,2]
[310902289,1704814242695,-154.44,0.00023752,2]
[310902291,1704814242704,-1500.0,0.000238,2]
[310902293,1704814242713,-472.86,0.00023811,2]
[310902295,1704814242723,-186.76,0.00023821,2]
[310902297,1704814242734,-10816.0618318,0.00023862,2]
[310902298,1704814242743,-917.3603815,0.00023862,2]
[310902299,1704814242752,-1147.4294119,0.00023862,2]
[310902300,1704814242763,-1860.232307,0.00023862,2]
[310902301,1704814242772,-621.17,0.00023866,2]
[310902302,1704814242782,-1948.1661832,0.00023878,2]
[310902303,1704814242791,-10279.0802682,0.00023878,2]
[310902304,1704814242800,-9408.935516,0.00023878,2]
[310902305,1704814242810,-50160.5121333,0.00023878,2]
[310902306,1704814242819,-175.81,0.00023881,2]
[310902307,1704814242829,-54057.7893333,0.00023894,2]
[310902308,1704814242838,-18626.3507041,0.00023894,2]
[310902309,1704814242848,-2000.0,0.00023934,2]
[310902310,1704814242857,-200.0,0.00023934,2]
[310902311,1704814242866,-472.86,0.00023935,2]
[310902312,1704814242880,-186.76,0.00023937,2]
[310902313,1704814242890,-621.17,0.0002398,2]
[310902314,1704814242901,-201.64324579,0.00024,2]
[310902315,1704814242911,-430.4389794,0.00024,2]
[310902316,1704814242921,-1300.0,0.00024,3]
[310902317,1704814242930,-156.17148489,0.00024,2]
[310902318,1704814242940,-186.76,0.00024053,2]
[310902319,1704814242950,-196.87,0.00024056,2]
[310902320,1704814242959,-472.86,0.0002406,2]
[310902322,1704814242969,-175.81,0.00024098,2]
[310902324,1704814242979,-11674.4332736,0.00024142,2]
[310902326,1704814242989,-990.1628457,0.00024142,2]
[310902328,1704814242999,-1237.3892889,0.00024142,2]
[310902330,1704814243009,-1556.8329646,0.00024142,2]
[310902332,1704814243019,-1839.0579821,0.00024159,2]
[310902335,1704814243029,-9719.8928956,0.00024159,2]
[310902339,1704814243039,-8897.0844755,0.00024159,2]
[310902342,1704814243048,-47368.2030666,0.00024159,2]
[310902345,1704814243057,-186.76,0.00024169,2]
[310902348,1704814243067,-50815.0346666,0.00024175,2]
[310902351,1704814243076,-17583.1708998,0.00024175,2]
[310902354,1704814243085,-472.86,0.00024185,2]
[310902356,1704814243095,-150.0,0.00024212,2]
[310902357,1704814243104,-150.0,0.00024212,2]
[310902358,1704814243113,-518.11,0.00024218,2]
[310902360,1704814243123,-5386.3056,0.00024226,2]
[310902362,1704814243133,-164.08,0.00024231,2]
[310902365,1704814243143,-400.84,0.00024247,2]
[310902367,1704814243152,-400.84,0.00024247,2]
[310902370,1704814243162,-939.21,0.00024247,2]
[310902373,1704814243172,-939.21,0.00024247,2]
[310902375,1704814243182,-400.84,0.00024247,2]
[310902377,1704814243191,-939.21,0.00024247,2]
[310902379,1704814243202,-400.84,0.00024247,2]
[310902382,1704814243211,-939.21,0.00024247,2]
[310902384,1704814243221,-500.0,0.00024267,2]
[310902386,1704814243230,-186.76,0.00024286,2]
[310902387,1704814243240,-167.0,0.00024297,2]
[310902388,1704814243249,-1500.0,0.000243,2]
[310902389,1704814243260,-150.0,0.000243,2]
[310902390,1704814243270,-500.0,0.000243,2]
[310902391,1704814243279,-472.86,0.00024309,2]
[310902392,1704814243288,-175.81,0.00024315,2]
[310902393,1704814243298,-244.86,0.0002432,2]
[310902394,1704814243307,-171.9,0.00024387,2]